fUSD/lending_fUSD_20250309
["ID","MTS","AMOUNT","RATE_DAILY","PERIOD"]
[355731412,1741515032463,-798.76112426,8.3e-05,2]
[355731413,1741515032579,-10809.75058777,8.3e-05,2]
[355731414,1741515032589,-300.0,8.368e-05,2]
[355731415,1741515032598,-833.41,8.368e-05,2]
[355731416,1741515032608,-344.81,8.368e-05,2]
[355731417,1741515032617,-397.96,8.381e-05,2]
[355731418,1741515032626,-163.16,8.42e-05,2]
[355731419,1741515032635,-500.0,8.521e-05,2]
[355731420,1741515032644,-163.16,8.665e-05,2]
[355731421,1741515032653,-1119.18,8.665e-05,2]
[355731422,1741515032662,-500.0,8.685e-05,2]
[355731423,1741515032671,-507.0,8.959e-05,2]
[355731424,1741515032681,-250.0,8.977e-05,2]
[355731425,1741515032690,-7981.72136726,9.081e-05,2]
[355731426,1741515032699,-150.0,9.09e-05,2]
[355731427,1741515032711,-13257.0067,9.091e-05,2]
[355731428,1741515032720,-849.1376,9.091e-05,2]
[355731429,1741515032729,-16283.6391988,9.1e-05,2]
[355731430,1741515032739,-648.89477768,9.11e-05,2]
[355731431,1741515032750,-331.77522232,9.11e-05,2]
[355731432,1741515032760,-174.662,9.11e-05,2]
[355731433,1741515032769,-448.39,9.123e-05,2]
[355731434,1741515032781,-150.0,9.13e-05,2]
[355731435,1741515032790,-150.0,9.173e-05,2]
[355731436,1741515032800,-222.37066816,9.176e-05,2]
[355731437,1741515032809,-4076.0,9.178e-05,2]
[355731438,1741515032819,-225.86,9.18e-05,2]
[355731439,1741515032828,-1012.0,9.18e-05,2]
[355731440,1741515032838,-155.834,9.18e-05,2]
[355731441,1741515032847,-3932.0,9.18e-05,2]
[355731442,1741515032857,-1095.373559,9.187e-05,2]
[355731443,1741515032867,-3366.1103431,9.187e-05,2]
[355731444,1741515032875,-1172.83,9.19e-05,2]
[355731445,1741515032885,-500.0,9.19e-05,2]
[355731446,1741515032894,-500.0,9.19e-05,2]
[355731447,1741515032904,-1891.42,9.19e-05,2]
[355731448,1741515032914,-586.363092,9.19e-05,2]
[355731449,1741515032923,-1893.0,9.19e-05,2]
[355731450,1741515032933,-3251.56,9.19e-05,2]
[355731451,1741515032943,-718.255968,9.19e-05,2]
[355731452,1741515032953,-623.29,9.19e-05,2]
[355731453,1741515032963,-659.0,9.19e-05,2]
[355731454,1741515032973,-841.6,9.19e-05,2]
[355731455,1741515032982,-724.98401334,9.19e-05,2]
[355731456,1741515033018,-790.58598666,9.19e-05,2]
[355731457,1741515033027,-58.77809584,9.19e-05,2]
[355731458,1741515033039,-258.54264143,9.19e-05,2]
[355731459,1741515033050,-513.68550688,9.19e-05,2]
[355731460,1741515033062,-209.39375585,9.19e-05,2]
[355731461,1741515033071,-946.27950939,9.19e-05,2]
[355731462,1741515033084,-945.54049061,9.19e-05,2]
[355731463,1741515033095,-1041.14,9.19e-05,2]
[355731464,1741515033105,-500.0,9.19e-05,2]
[355731465,1741515033115,-563.62,9.19e-05,2]
[355731466,1741515033125,-2177.66,9.19e-05,2]
[355731467,1741515033135,-1053.97,9.19e-05,2]
[355731468,1741515033144,-471.47928126,9.19e-05,2]
[355731512,1741515038317,-362.03153926,8.897e-05,2]
[355731513,1741515038580,-927.17071874,9.19e-05,2]
[355731514,1741515038591,-1396.71,9.19e-05,2]
[355731515,1741515038600,-708.84,9.19e-05,2]
[355731516,1741515038610,-1073.847742,9.19e-05,2]
[355731517,1741515038622,-530.22558186,9.19e-05,2]
[355731518,1741515038635,-870.35667614,9.19e-05,2]
[355731519,1741515038645,-134.85183046,9.19e-05,2]
[355731520,1741515038672,-1223.27816954,9.19e-05,2]
[355731521,1741515038682,-1712.2,9.19e-05,2]
[355731522,1741515038692,-3869.27,9.19e-05,2]
[355731524,1741515038701,-2492.87,9.19e-05,2]
[355731526,1741515038710,-1217.72,9.19e-05,2]
[355731527,1741515038721,-1588.57,9.19e-05,2]
[355731528,1741515038731,-500.0,9.19e-05,2]
[355731530,1741515038740,-1293.73,9.19e-05,2]
[355731532,1741515038750,-661.05,9.19e-05,2]
[355731534,1741515038759,-6196.22,9.19e-05,2]
[355731535,1741515038769,-1201.8,9.19e-05,2]
[355731537,1741515038783,-2940.26,9.19e-05,2]
[355731539,1741515038792,-500.0,9.19e-05,2]
[355731540,1741515038802,-1804.26,9.19e-05,2]
[355731542,1741515038812,-500.0,9.19e-05,2]
[355731544,1741515038823,-2035.86,9.19e-05,2]
[355731546,1741515038832,-1187.54,9.19e-05,2]
[355731547,1741515038841,-500.0,9.19e-05,2]
[355731549,1741515038851,-500.0,9.19e-05,2]
[355731551,1741515038860,-629.79,9.19e-05,2]
[355731553,1741515038870,-2332.57,9.19e-05,2]
[355731554,1741515038879,-872.25,9.19e-05,2]
[355731556,1741515038888,-785.19,9.19e-05,2]
[355731558,1741515038898,-500.0,9.19e-05,2]
[355731560,1741515038907,-918.73,9.19e-05,2]
[355731561,1741515038917,-1290.21,9.19e-05,2]
[355731563,1741515038926,-500.0,9.19e-05,2]
[355731565,1741515038936,-1179.7,9.19e-05,2]
[355731567,1741515038946,-500.0,9.19e-05,2]
[355731569,1741515038955,-5056.73,9.19e-05,2]
[355731570,1741515038966,-615.35,9.19e-05,2]
[355731572,1741515038975,-500.0,9.19e-05,2]
[355731574,1741515038984,-1026.04,9.19e-05,2]
[355731576,1741515038993,-593.05,9.19e-05,2]
[355731577,1741515039003,-500.0,9.19e-05,2]
[355731579,1741515039013,-500.0,9.19e-05,2]
[355731581,1741515039023,-3096.09,9.19e-05,2]
[355731583,1741515039032,-1520.86,9.19e-05,2]
[355731584,1741515039041,-500.91059519,9.191e-05,2]
[355731586,1741515039050,-290.513564,9.191e-05,2]
[355731588,1741515039059,-151.0,9.191e-05,2]
[355731590,1741515039068,-415.32115179,9.191e-05,2]
[355731591,1741515039078,-500.0,9.191e-05,2]
[355731593,1741515039086,-500.0,9.191e-05,2]
[355731595,1741515039096,-500.0,9.191e-05,2]
[355731597,1741515039105,-731.55,9.191e-05,2]
[355731598,1741515039115,-500.0,9.191e-05,2]
[355731600,1741515039124,-500.0,9.191e-05,2]
[355731602,1741515039133,-500.0,9.191e-05,2]
[355731604,1741515039142,-500.0,9.191e-05,2]
[355731605,1741515039152,-214.82881638,9.191e-05,2]
[355731607,1741515039161,-500.0,9.191e-05,2]
[355731609,1741515039171,-500.0,9.191e-05,2]
[355731611,1741515039180,-239.04269444,9.191e-05,2]
[355731613,1741515039190,-500.0,9.191e-05,2]
[355731614,1741515039200,-500.0,9.191e-05,2]
[355731616,1741515039209,-500.0,9.191e-05,2]
[355731618,1741515039220,-500.0,9.191e-05,2]
[355731620,1741515039229,-500.0,9.191e-05,2]
[355731621,1741515039239,-500.0,9.191e-05,2]
[355731623,1741515039248,-500.0,9.191e-05,2]
[355731625,1741515039258,-500.0,9.191e-05,2]
[355731627,1741515039267,-500.0,9.191e-05,2]
[355731628,1741515039276,-541.88,9.191e-05,2]
[355731630,1741515039285,-500.0,9.191e-05,2]
[355731632,1741515039295,-500.0,9.191e-05,2]
[355731634,1741515039304,-500.0,9.191e-05,2]
[355731636,1741515039314,-500.0,9.191e-05,2]
[355731638,1741515039323,-500.0,9.191e-05,2]
[355731639,1741515039332,-516.7,9.191e-05,2]
[355731640,1741515039341,-500.0,9.191e-05,2]
[355731641,1741515039350,-500.0,9.191e-05,2]
[355731642,1741515039359,-500.0,9.191e-05,2]
[355731643,1741515039368,-372.08173,9.191e-05,2]
[355731644,1741515039378,-500.0,9.191e-05,2]
[355731645,1741515039387,-500.0,9.191e-05,2]
[355731646,1741515039396,-500.0,9.191e-05,2]
[355731647,1741515039405,-372.08173,9.191e-05,2]
[355731648,1741515039414,-500.0,9.191e-05,2]
[355731649,1741515039423,-500.0,9.191e-05,2]
[355731650,1741515039432,-493.00915273,9.191e-05,2]
[355731651,1741515039441,-500.0,9.191e-05,2]
[355731652,1741515039450,-500.0,9.191e-05,2]
[355731653,1741515039459,-500.0,9.191e-05,2]
[355731655,1741515039470,-500.0,9.191e-05,2]
[355731656,1741515039479,-806.107029,9.191e-05,2]
[355731658,1741515039489,-500.0,9.191e-05,2]
[355731661,1741515039499,-500.0,9.191e-05,2]
[355731662,1741515039508,-500.0,9.191e-05,2]
[355731664,1741515039517,-500.0,9.191e-05,2]
[355731666,1741515039527,-806.107029,9.191e-05,2]
[355731668,1741515039537,-500.0,9.191e-05,2]
[355731670,1741515039547,-500.0,9.191e-05,2]
[355731672,1741515039556,-500.0,9.191e-05,2]
[355731674,1741515039566,-500.0,9.191e-05,2]
[355731676,1741515039575,-500.0,9.191e-05,2]
[355731678,1741515039585,-500.0,9.191e-05,2]
[355731680,1741515039595,-500.0,9.191e-05,2]
[355731682,1741515039604,-500.0,9.191e-05,2]
[355731684,1741515039614,-500.0,9.191e-05,2]
[355731687,1741515039624,-500.0,9.191e-05,2]
[355731689,1741515039633,-500.0,9.191e-05,2]
[355731691,1741515039642,-500.0,9.191e-05,2]
[355731693,1741515039651,-500.0,9.191e-05,2]
[355731695,1741515039661,-500.0,9.191e-05,2]
[355731697,1741515039671,-500.0,9.191e-05,2]
[355731699,1741515039680,-500.0,9.191e-05,2]
[355731701,1741515039690,-500.0,9.191e-05,2]
[355731703,1741515039700,-500.0,9.191e-05,2]
[355731705,1741515039710,-500.0,9.191e-05,2]
[355731707,1741515039721,-500.0,9.191e-05,2]
[355731709,1741515039731,-500.0,9.191e-05,2]
[355731711,1741515039740,-316.95608201,9.191e-05,2]
[355731713,1741515039749,-500.0,9.191e-05,2]
[355731715,1741515039758,-500.0,9.191e-05,2]
[355731717,1741515039768,-1437.4720026,9.191e-05,2]
[355731719,1741515039778,-511.09741557,9.191e-05,2]
[355731721,1741515039790,-500.0,9.191e-05,2]
[355731723,1741515039800,-500.0,9.191e-05,2]
[355731725,1741515039811,-500.0,9.191e-05,2]
[355731727,1741515039822,-500.0,9.191e-05,2]
[355731729,1741515039833,-500.0,9.191e-05,2]
[355731731,1741515039843,-248.39219704,9.191e-05,2]
[355731733,1741515039853,-500.0,9.191e-05,2]
[355731735,1741515039865,-500.0,9.191e-05,2]
[355731737,1741515039875,-500.0,9.191e-05,2]
[355731739,1741515039884,-500.0,9.191e-05,2]
[355731741,1741515039893,-500.0,9.191e-05,2]
[355731743,1741515039902,-500.0,9.191e-05,2]
[355731745,1741515039911,-500.0,9.191e-05,2]
[355731747,1741515039921,-500.0,9.191e-05,2]
[355731749,1741515039931,-500.0,9.191e-05,2]
[355731751,1741515039940,-500.0,9.191e-05,2]
[355731753,1741515039950,-500.0,9.191e-05,2]
[355731755,1741515039960,-500.0,9.191e-05,2]
[355731757,1741515039972,-500.0,9.191e-05,2]
[355731759,1741515039981,-10000.0,9.191e-05,2]
[355731761,1741515039990,-500.0,9.191e-05,2]
[355731763,1741515040000,-584.98481118,9.191e-05,2]
[355731765,1741515040010,-108.77597245,9.191e-05,2]
[355731767,1741515040026,-391.22402755,9.191e-05,2]
[355731769,1741515040036,-500.0,9.191e-05,2]
[355731771,1741515040045,-10000.0,9.191e-05,2]
[355731774,1741515040055,-500.0,9.191e-05,2]
[355731775,1741515040065,-500.0,9.191e-05,2]
[355731777,1741515040074,-500.0,9.191e-05,2]
[355731779,1741515040083,-500.0,9.191e-05,2]
[355731781,1741515040093,-10000.0,9.191e-05,2]
[355731784,1741515040103,-151.0,9.191e-05,2]
[355731785,1741515040113,-500.0,9.191e-05,2]
[355731788,1741515040122,-10000.0,9.191e-05,2]
[355731790,1741515040132,-548.76756283,9.191e-05,2]
[355731791,1741515040141,-151.0,9.191e-05,2]
[355731794,1741515040152,-500.0,9.191e-05,2]
[355731796,1741515040161,-317.44934248,9.191e-05,2]
[355731836,1741515040550,-775.5981233,9.18e-05,2]
[355731838,1741515040562,-337.4018767,9.18e-05,2]
[355731840,1741515040572,-118.38184502,9.19e-05,2]
[355732147,1741515043520,-526.53144547,9.19e-05,2]
[355732150,1741515043532,-394.16670951,9.19e-05,2]
[355732152,1741515043541,-2990.2675204,9.19e-05,2]
[355732156,1741515043576,-930.0724796,9.19e-05,2]
[355732158,1741515043586,-202.10305719,9.191e-05,2]
[355732160,1741515043595,-500.0,9.191e-05,2]
[355732162,1741515043605,-378.08987967,9.191e-05,2]
[355732164,1741515043614,-659.5,9.191e-05,2]
[355732166,1741515043623,-500.0,9.191e-05,2]
[355732168,1741515043633,-384.63458354,9.191e-05,2]
[355732175,1741515043689,-115.36541646,9.191e-05,2]
[355732177,1741515043699,-500.0,9.191e-05,2]
[355732179,1741515043708,-500.0,9.191e-05,2]
[355732181,1741515043717,-500.0,9.191e-05,2]
[355732183,1741515043728,-500.0,9.191e-05,2]
[355732185,1741515043738,-500.0,9.191e-05,2]
[355732187,1741515043747,-500.0,9.191e-05,2]
[355732189,1741515043757,-500.0,9.191e-05,2]
[355732191,1741515043766,-934.9,9.191e-05,2]
[355732193,1741515043776,-500.0,9.191e-05,2]
[355732195,1741515043789,-500.0,9.191e-05,2]
[355732197,1741515043799,-500.0,9.191e-05,2]
[355732199,1741515043808,-579.13,9.191e-05,2]
[355732201,1741515043818,-500.0,9.191e-05,2]
[355732203,1741515043829,-500.0,9.191e-05,2]
[355732205,1741515043839,-500.0,9.191e-05,2]
[355732207,1741515043849,-500.0,9.191e-05,2]
[355732209,1741515043859,-500.0,9.191e-05,2]
[355732211,1741515043868,-908.66,9.191e-05,2]
[355732213,1741515043879,-500.0,9.191e-05,2]
[355732215,1741515043888,-500.0,9.191e-05,2]
[355732217,1741515043897,-261.57,9.191e-05,2]
[355732219,1741515043907,-500.0,9.191e-05,2]
[355732221,1741515043917,-500.0,9.191e-05,2]
[355732223,1741515043927,-329.76644,9.191e-05,2]
[355732225,1741515043937,-166.44,9.191e-05,2]
[355732227,1741515043947,-329.76644,9.191e-05,2]
[355732229,1741515043957,-500.0,9.191e-05,2]
[355732231,1741515043966,-500.0,9.191e-05,2]
[355732233,1741515043977,-128.67723824,9.191e-05,2]
[355732235,1741515043989,-371.32276176,9.191e-05,2]
[355732237,1741515043999,-159.1934037,9.191e-05,2]
[355732240,1741515044016,-340.8065963,9.191e-05,2]
[355732242,1741515044026,-500.0,9.191e-05,2]
[355732244,1741515044035,-877.46648765,9.191e-05,2]
[355732367,1741515045271,-2841.29997,9.191e-05,2]
[355732489,1741515046410,-1814.12,9.19e-05,2]
[355732491,1741515046420,-1897.24676915,9.191e-05,2]
[355732492,1741515046430,-500.0,9.191e-05,2]
[355732494,1741515046438,-500.0,9.191e-05,2]
[355732496,1741515046448,-500.0,9.191e-05,2]
[355732498,1741515046457,-151.0,9.191e-05,2]
[355732500,1741515046466,-500.0,9.191e-05,2]
[355732502,1741515046475,-709.89,9.191e-05,2]
[355732504,1741515046484,-507.73971828,9.191e-05,2]
[355732506,1741515046495,-830.04,9.191e-05,2]
[355732508,1741515046504,-500.0,9.191e-05,2]
[355732510,1741515046513,-500.0,9.191e-05,2]
[355732511,1741515046523,-570.3725571,9.191e-05,2]
[355732512,1741515046531,-422.700233,9.191e-05,2]
[355732513,1741515046540,-579.54,9.191e-05,2]
[355732514,1741515046549,-500.0,9.191e-05,2]
[355732515,1741515046558,-422.700233,9.191e-05,2]
[355732516,1741515046567,-500.0,9.191e-05,2]
[355732517,1741515046576,-500.0,9.191e-05,2]
[355732518,1741515046585,-500.0,9.191e-05,2]
[355732520,1741515046594,-500.0,9.191e-05,2]
[355732522,1741515046603,-500.0,9.191e-05,2]
[355732524,1741515046613,-770.87,9.191e-05,2]
[355732526,1741515046623,-1175.093906,9.191e-05,2]
[355732528,1741515046632,-500.0,9.191e-05,2]
[355732530,1741515046642,-665.78,9.191e-05,2]
[355732532,1741515046651,-1175.093906,9.191e-05,2]
[355732534,1741515046661,-500.0,9.191e-05,2]
[355732536,1741515046670,-500.0,9.191e-05,2]
[355732538,1741515046679,-500.0,9.191e-05,2]
[355732540,1741515046689,-601.54,9.191e-05,2]
[355732542,1741515046699,-500.0,9.191e-05,2]
[355732544,1741515046708,-517.6863037,9.191e-05,2]
[355732546,1741515046719,-500.0,9.191e-05,2]
[355732548,1741515046729,-500.0,9.191e-05,2]
[355732550,1741515046739,-490.0,9.191e-05,2]
[355732552,1741515046748,-500.0,9.191e-05,2]
[355732554,1741515046758,-151.0,9.191e-05,2]
[355732556,1741515046768,-500.0,9.191e-05,2]
[355732558,1741515046782,-217.891877,9.191e-05,2]
[355732560,1741515046791,-500.0,9.191e-05,2]
[355732562,1741515046801,-151.0,9.191e-05,2]
[355732564,1741515046810,-151.0,9.191e-05,2]
[355732566,1741515046819,-228.39141,9.191e-05,2]
[355732568,1741515046829,-151.0,9.191e-05,2]
[355732570,1741515046839,-500.0,9.191e-05,2]
[355732572,1741515046848,-217.891877,9.191e-05,2]
[355732575,1741515046858,-500.0,9.191e-05,2]
[355732577,1741515046868,-228.39141,9.191e-05,2]
[355732579,1741515046877,-369.69652718,9.191e-05,2]
[355732581,1741515046887,-208.52,9.191e-05,2]
[355732583,1741515046895,-681.64,9.191e-05,2]
[355732585,1741515046904,-377.223535,9.191e-05,2]
[355732586,1741515046913,-377.223535,9.191e-05,2]
[355732589,1741515046922,-377.223535,9.191e-05,2]
[355732592,1741515046932,-377.223535,9.191e-05,2]
[355732594,1741515046941,-500.0,9.191e-05,2]
[355732596,1741515046950,-772.39,9.191e-05,2]
[355732598,1741515046960,-246.41715741,9.191e-05,2]
[355732601,1741515046970,-500.0,9.191e-05,2]
[355732602,1741515046980,-500.0,9.191e-05,2]
[355732604,1741515046990,-500.0,9.191e-05,2]
[355732606,1741515047000,-500.0,9.191e-05,2]
[355732608,1741515047010,-500.0,9.191e-05,2]
[355732610,1741515047019,-500.0,9.191e-05,2]
[355732612,1741515047028,-500.0,9.191e-05,2]
[355732614,1741515047037,-401.2399667,9.191e-05,2]
[355732617,1741515047047,-500.0,9.191e-05,2]
[355732619,1741515047056,-651.04,9.191e-05,2]
[355732621,1741515047066,-500.0,9.191e-05,2]
[355732623,1741515047076,-507.46,9.191e-05,2]
[355732625,1741515047086,-689.95,9.191e-05,2]
[355732627,1741515047095,-500.0,9.191e-05,2]
[355732629,1741515047104,-500.0,9.191e-05,2]
[355732631,1741515047113,-500.0,9.191e-05,2]
[355732633,1741515047123,-2864.74,9.191e-05,2]
[355732635,1741515047133,-500.0,9.191e-05,2]
[355732637,1741515047142,-632.42,9.191e-05,2]
[355732639,1741515047151,-500.0,9.191e-05,2]
[355732641,1741515047161,-500.0,9.191e-05,2]
[355732643,1741515047170,-592.16,9.191e-05,2]
[355732645,1741515047179,-500.0,9.191e-05,2]
[355732647,1741515047188,-500.0,9.191e-05,2]
[355732649,1741515047198,-1416.06,9.191e-05,2]
[355732650,1741515047207,-1841.59,9.191e-05,2]
[355732652,1741515047216,-1389.18,9.191e-05,2]
[355732655,1741515047229,-500.0,9.191e-05,2]
[355732657,1741515047240,-500.0,9.191e-05,2]
[355732659,1741515047253,-905.33,9.191e-05,2]
[355732662,1741515047265,-248.2,9.191e-05,2]
[355732664,1741515047277,-500.0,9.191e-05,2]
[355732666,1741515047288,-481.97476363,9.191e-05,2]
[355732668,1741515047299,-151.0,9.191e-05,2]
[355732670,1741515047311,-151.0,9.191e-05,2]
[355732673,1741515047323,-151.0,9.191e-05,2]
[355732675,1741515047335,-802.05,9.191e-05,2]
[355732677,1741515047347,-584.85,9.191e-05,2]
[355732680,1741515047361,-151.0,9.191e-05,2]
[355732682,1741515047372,-151.0,9.191e-05,2]
[355732684,1741515047385,-507.33,9.191e-05,2]
[355732686,1741515047397,-500.0,9.191e-05,2]
[355732689,1741515047407,-500.0,9.191e-05,2]
[355732691,1741515047417,-1219.25,9.191e-05,2]
[355732693,1741515047429,-500.0,9.191e-05,2]
[355732695,1741515047442,-2062.63,9.191e-05,2]
[355732698,1741515047453,-422.389313,9.191e-05,2]
[355732700,1741515047465,-422.389313,9.191e-05,2]
[355732702,1741515047477,-422.389313,9.191e-05,2]
[355732704,1741515047488,-650.15,9.191e-05,2]
[355732707,1741515047501,-422.389313,9.191e-05,2]
[355732709,1741515047515,-422.389313,9.191e-05,2]
[355732711,1741515047527,-422.389313,9.191e-05,2]
[355732714,1741515047539,-500.0,9.191e-05,2]
[355732716,1741515047551,-3024.75,9.191e-05,2]
[355732718,1741515047564,-620.745762,9.191e-05,2]
[355732721,1741515047576,-620.745762,9.191e-05,2]
[355732723,1741515047589,-620.745762,9.191e-05,2]
[355732725,1741515047601,-500.0,9.191e-05,2]
[355732727,1741515047612,-620.745762,9.191e-05,2]
[355732730,1741515047625,-620.745762,9.191e-05,2]
[355732732,1741515047636,-620.745762,9.191e-05,2]
[355732734,1741515047648,-500.0,9.191e-05,2]
[355732737,1741515047660,-551.92,9.191e-05,2]
[355732739,1741515047673,-500.0,9.191e-05,2]
[355732741,1741515047684,-500.0,9.191e-05,2]
[355732743,1741515047695,-150.11,9.191e-05,2]
[355732746,1741515047707,-723.255003,9.191e-05,2]
[355732748,1741515047718,-723.255003,9.191e-05,2]
[355732750,1741515047728,-723.255003,9.191e-05,2]
[355732752,1741515047738,-571.98,9.191e-05,2]
[355732754,1741515047750,-723.255003,9.191e-05,2]
[355732756,1741515047762,-723.255003,9.191e-05,2]
[355732759,1741515047776,-723.255003,9.191e-05,2]
[355732761,1741515047793,-911.25,9.191e-05,2]
[355732763,1741515047804,-500.0,9.191e-05,2]
[355732765,1741515047813,-151.0,9.191e-05,2]
[355732767,1741515047823,-151.0,9.191e-05,2]
[355732769,1741515047833,-151.0,9.191e-05,2]
[355732772,1741515047846,-151.0,9.191e-05,2]
[355732774,1741515047858,-152.181344,9.191e-05,2]
[355732776,1741515047872,-151.0,9.191e-05,2]
[355732779,1741515047884,-500.0,9.191e-05,2]
[355732781,1741515047896,-500.0,9.191e-05,2]
[355732783,1741515047906,-500.0,9.191e-05,2]
[355732785,1741515047916,-622.28883848,9.191e-05,2]
[355732787,1741515047927,-829.43,9.191e-05,2]
[355732789,1741515047938,-891.76,9.191e-05,2]
[355732791,1741515047949,-500.0,9.191e-05,2]
[355732794,1741515047960,-660.62,9.191e-05,2]
[355732795,1741515047970,-500.0,9.191e-05,2]
[355732796,1741515047982,-1002.19,9.191e-05,2]
[355732797,1741515047994,-1018.09,9.191e-05,2]
[355732798,1741515048005,-1288.28,9.191e-05,2]
[355732799,1741515048019,-527.38,9.191e-05,2]
[355732800,1741515048031,-2174.33,9.191e-05,2]
[355732802,1741515048042,-278.816023,9.191e-05,2]
[355732804,1741515048054,-278.816023,9.191e-05,2]
[355732806,1741515048065,-278.816023,9.191e-05,2]
[355732808,1741515048076,-186.84170843,9.191e-05,2]
[355732811,1741515048087,-278.816023,9.191e-05,2]
[355732813,1741515048099,-2021.48,9.191e-05,2]
[355732815,1741515048110,-1829.42614044,9.191e-05,2]
[355732818,1741515048127,-398.19496046,9.191e-05,2]
[355732820,1741515048141,-9153.4288991,9.191e-05,2]
[355732823,1741515048152,-496.09,9.191e-05,2]
[355732825,1741515048163,-500.0,9.191e-05,2]
[355732827,1741515048174,-558.76,9.191e-05,2]
[355732829,1741515048185,-465.365574,9.191e-05,2]
[355732831,1741515048196,-465.365574,9.191e-05,2]
[355732833,1741515048207,-465.365574,9.191e-05,2]
[355732836,1741515048218,-500.0,9.191e-05,2]
[355732838,1741515048230,-465.365574,9.191e-05,2]
[355732840,1741515048241,-465.365574,9.191e-05,2]
[355732842,1741515048252,-500.0,9.191e-05,2]
[355732844,1741515048263,-465.365574,9.191e-05,2]
[355732846,1741515048275,-1083.13,9.191e-05,2]
[355732849,1741515048286,-450.72,9.191e-05,2]
[355732851,1741515048297,-349.124876,9.191e-05,2]
[355732853,1741515048308,-151.0,9.191e-05,2]
[355732855,1741515048319,-349.124876,9.191e-05,2]
[355732857,1741515048330,-151.0,9.191e-05,2]
[355732860,1741515048341,-349.124876,9.191e-05,2]
[355732862,1741515048352,-151.0,9.191e-05,2]
[355732864,1741515048363,-703.81,9.191e-05,2]
[355732866,1741515048374,-151.0,9.191e-05,2]
[355732868,1741515048385,-151.0,9.191e-05,2]
[355732870,1741515048395,-349.124876,9.191e-05,2]
[355732873,1741515048406,-151.0,9.191e-05,2]
[355732875,1741515048416,-349.124876,9.191e-05,2]
[355732877,1741515048427,-349.124876,9.191e-05,2]
[355732879,1741515048439,-151.0,9.191e-05,2]
[355732881,1741515048450,-151.0,9.191e-05,2]
[355732883,1741515048461,-151.0,9.191e-05,2]
[355732886,1741515048472,-151.0,9.191e-05,2]
[355732888,1741515048484,-151.0,9.191e-05,2]
[355732890,1741515048495,-151.0,9.191e-05,2]
[355732892,1741515048506,-270.63507356,9.192e-05,2]
[355732894,1741515048517,-231.97099444,9.192e-05,2]
[355732896,1741515048528,-660.614041,9.192e-05,2]
[355732899,1741515048538,-660.614041,9.192e-05,2]
[355732901,1741515048549,-1627.859484,9.192e-05,2]
[355732903,1741515048560,-496.91332161,9.192e-05,2]
[355732905,1741515048572,-282.103535,9.192e-05,2]
[355732907,1741515048583,-282.103535,9.192e-05,2]
[355732910,1741515048594,-393.523675,9.192e-05,2]
[355732912,1741515048605,-393.523675,9.192e-05,2]
[355732914,1741515048616,-166.100761,9.192e-05,2]
[355732916,1741515048628,-151.0,9.192e-05,2]
[355732918,1741515048639,-718.160266,9.192e-05,2]
[355732920,1741515048650,-718.160266,9.192e-05,2]
[355732923,1741515048661,-151.0,9.192e-05,2]
[355732925,1741515048673,-151.0,9.192e-05,2]
[355732927,1741515048684,-219.312079,9.192e-05,2]
[355732929,1741515048695,-219.312079,9.192e-05,2]
[355732931,1741515048707,-287.995974,9.192e-05,2]
[355732934,1741515048717,-287.995974,9.192e-05,2]
[355732936,1741515048729,-287.995974,9.192e-05,2]
[355732938,1741515048740,-287.995974,9.192e-05,2]
[355732940,1741515048752,-500.0,9.192e-05,2]
[355732942,1741515048763,-176.52094855,9.192e-05,2]
[355732944,1741515048775,-500.0,9.192e-05,2]
[355732947,1741515048790,-500.0,9.192e-05,2]
[355732949,1741515048801,-500.0,9.192e-05,2]
[355732951,1741515048812,-500.0,9.192e-05,2]
[355732953,1741515048824,-500.0,9.192e-05,2]
[355732955,1741515048835,-500.0,9.192e-05,2]
[355732957,1741515048846,-450.61053251,9.192e-05,2]
[355732959,1741515048857,-422.700233,9.192e-05,2]
[355732962,1741515048869,-422.700233,9.192e-05,2]
[355732964,1741515048880,-1175.093906,9.192e-05,2]
[355732966,1741515048891,-1175.093906,9.192e-05,2]